[Event "XX Gran Hotel Bali-B 2023"]
[Site "Benidorm"]
[Date "2023.12.02"]
[Round "1.7"]
[White "Cebrian Flores, Juan Antonio"]
[Black "Ilinca Ilinca, Filip Antonio"]
[Result "0-1"]
[ECO "D41"]
[WhiteElo "1981"]
[BlackElo "1642"]
[Annotator "NA RC"]
[PlyCount "70"]
[EventDate "2023.12.02"]
[EventType "swiss"]
[EventCountry "ESP"]
[SourceTitle "playchess.com"]
[Source "ChessBase"]
[SourceQuality "1"]
[TimeControl "5400+30"]

1. d4 {[%emt 0:05:33]} d5 {[%emt 0:00:11]} 2. c4 {[%emt 0:00:18]} e6 {[%emt 0:00:07]} 3. Nc3 {[%emt 0:00:09]} Nf6 {[%emt 0:00:09]} 4. cxd5 {[%emt 0:00:06]} Nxd5 {[%emt 0:01:00]} 5. e4 {[%emt 0:00:59]} Nxc3 {[%emt 0:00:38]} 6. bxc3 {[%emt 1:26:25]} c5 7. Nf3 {[%emt 0:00:00]} cxd4 {[%emt 0:03:05]} 8. cxd4 {[%emt 0:00:00]} Bb4+ {[%emt 0:02:36]} 9. Bd2 {[%emt 0:01:30]} Bxd2+ {[%emt 0:00:47]} 10. Qxd2 {[%emt 0:00:00]} O-O {[%emt 0:01:01]} 11. Bc4 {[%emt 0:00:00]} Nd7 {[%emt 0:03:17]} 12. O-O {[%emt 0:00:00]} Nf6 {[%emt 0:03:26]} 13. Rfe1 {[%emt 0:00:00]} b6 {[%emt 0:02:35]} 14. Rad1 {[%emt 0:00:00]} Bb7 {[%emt 0:00:42]} 15. Qf4 {[%emt 0:00:00]} Rc8 {[%emt 0:03:17]} 16. Bd3 {[%emt 0:00:00]} h6 {[%emt 0:13:17]} 17. d5 {[%emt 0:00:00]} exd5 {[%emt 0:09:39]} 18. e5 {[%emt 0:00:00]} Nd7 {[%emt 0:01:58]} 19. Qf5 {[%emt 0:00:00]} g6 {[%emt 0:00:21]} 20. Qg4 {[%emt 0:00:00]} Kh7 {[%emt 0:09:02]} 21. h4 {[%emt 0:00:00]} Rg8 {[%emt 0:43:52]} 22. h5 {[%emt 0:00:00]} Nc5 {[%emt 0:00:00]} 23. hxg6+ {[%emt 0:00:00]} fxg6 {[%emt 0:00:00]} 24. Bb1 {[%emt 0:00:00]} Qe7 {[%emt 0:00:00]} 25. Nd4 {[%emt 0:00:00]} Qg5 {[%emt 0:02:00]} 26. Qxg5 {[%emt 0:01:05]} hxg5 {[%emt 0:00:00]} 27. Nb5 {[%emt 0:00:39]} Rcd8 {[%emt 0:00:00]} 28. f3 {[%emt 0:02:50]} Kg7 {[%emt 0:00:00]} 29. Nd4 {[%emt 0:01:59]} Rge8 {[%emt 0:00:00]} 30. Kf2 {[%emt 0:01:17]} Re7 {[%emt 0:00:00]} 31. g3 {[%emt 0:00:14]} g4 {[%emt 0:00:00]} 32. f4 {[%emt 0:00:16]} Rf8 {[%emt 0:00:00]} 33. Kg1 {[%emt 0:01:47]} Ne4 {[%emt 0:01:28]} 34. Kg2 {[%emt 0:00:18]} Rh8 {[%emt 0:01:22]} 35. Rh1 {[%emt 0:01:29]} Rh3 {[%emt 0:00:32]} 0-1

[Event "XX Gran Hotel Bali-B 2023"]
[Site "Benidorm"]
[Date "2023.12.02"]
[Round "1.8"]
[White "Gottfried, Andreas"]
[Black "Sempere Domenech, Abel"]
[Result "0-1"]
[ECO "C50"]
[WhiteElo "1626"]
[BlackElo "1981"]
[Annotator "NA RC"]
[PlyCount "70"]
[EventDate "2023.12.02"]
[EventType "swiss"]
[EventCountry "ESP"]
[SourceTitle "playchess.com"]
[Source "ChessBase"]
[SourceQuality "1"]
[TimeControl "5400+30"]

1. e4 {[%emt 0:00:18]} e5 {[%emt 0:00:06]} 2. Nf3 {[%emt 0:00:09]} Nc6 {[%emt 0:00:02]} 3. Bc4 {[%emt 0:00:05]} Bc5 {[%emt 0:00:16]} 4. d3 {[%emt 0:00:26]} Nf6 {[%emt 0:00:43]} 5. O-O {[%emt 0:00:53]} d6 {[%emt 0:01:44]} 6. Nc3 {[%emt 0:00:50]} h6 {[%emt 0:05:54]} 7. Be3 {[%emt 0:01:23]} Bb6 {[%emt 0:01:18]} 8. a3 {[%emt 0:08:36]} Bg4 {[%emt 0:07:53]} 9. Bxb6 {[%emt 0:07:39]} axb6 {[%emt 0:03:26]} 10. Bb5 {[%emt 0:00:49]} O-O {[%emt 0:00:41]} 11. Bxc6 {[%emt 0:02:06]} bxc6 {[%emt 0:00:03]} 12. h3 {[%emt 0:08:53]} Bh5 {[%emt 0:02:10]} 13. g4 {[%emt 0:03:33]} Nxg4 {[%emt 0:05:06]} 14. Nxe5 {[%emt 0:00:53]} Nf6 {[%emt 0:02:33]} 15. Ng4 {[%emt 0:04:07]} Nh7 {[%emt 0:04:54]} 16. Nxh6+ {[%emt 0:01:55]} gxh6 {[%emt 0:00:08]} 17. Qxh5 {[%emt 0:00:11]} Qf6 {[%emt 0:01:02]} 18. f4 {[%emt 0:03:58]} Ra5 {[%emt 0:01:12]} 19. Qf3 {[%emt 0:01:17]} Kh8 {[%emt 0:02:02]} 20. Kh2 {[%emt 0:01:15]} Rg8 {[%emt 0:01:17]} 21. Rg1 {[%emt 0:01:57]} Rg6 {[%emt 0:04:01]} 22. Rg4 {[%emt 0:04:47]} Rh5 {[%emt 0:01:29]} 23. Rag1 {[%emt 0:03:18]} Ng5 {[%emt 0:01:03]} 24. Rxg5 {[%emt 0:08:57]} Rhxg5 {[%emt 0:00:10]} 25. Rxg5 {[%emt 0:00:52]} hxg5 {[%emt 0:02:07]} 26. f5 {[%emt 0:01:41]} Rh6 {[%emt 0:00:29]} 27. Qg2 {[%emt 0:02:12]} Qg7 {[%emt 0:02:21]} 28. Qg4 {[%emt 0:02:50]} Kh7 {[%emt 0:04:41]} 29. Nd1 {[%emt 0:06:38]} Qe5+ {[%emt 0:01:33]} 30. Kg2 {[%emt 0:02:39]} f6 {[%emt 0:00:15]} 31. c3 {[%emt 0:04:15]} d5 {[%emt 0:01:03]} 32. Ne3 {[%emt 0:03:17]} Rh4 {[%emt 0:00:41]} 33. Qg3 {[%emt 0:02:18]} dxe4 {[%emt 0:02:53]} 34. d4 {[%emt 0:01:04]} Qxg3+ {[%emt 0:00:50]} 35. Kxg3 {[%emt 0:00:06]} Rf4 {[%emt 0:00:09]} 0-1

[Event "XX Gran Hotel Bali-B 2023"]
[Site "Benidorm"]
[Date "2023.12.02"]
[Round "1.9"]
[White "Alcaraz Soriano, Angela"]
[Black "Domingo Moratalla, Julio"]
[Result "1/2-1/2"]
[ECO "D52"]
[WhiteElo "1977"]
[BlackElo "1638"]
[Annotator "NA RC"]
[PlyCount "62"]
[EventDate "2023.12.02"]
[EventType "swiss"]
[EventCountry "ESP"]
[SourceTitle "playchess.com"]
[Source "ChessBase"]
[SourceQuality "1"]
[TimeControl "5400+30"]

1. d4 {[%emt 0:00:05]} Nf6 {[%emt 0:00:12]} 2. c4 {[%emt 0:00:06]} e6 {[%emt 0:00:16]} 3. Nf3 {[%emt 0:00:31]} d5 {[%emt 0:00:25]} 4. Bg5 {[%emt 0:01:05]} c6 {[%emt 0:01:11]} 5. Nc3 {[%emt 0:00:34]} Nbd7 {[%emt 0:02:02]} 6. e3 {[%emt 0:00:33]} Qa5 {[%emt 0:00:49]} 7. Nd2 {[%emt 0:02:20]} Bb4 {[%emt 0:06:45]} 8. Qc2 {[%emt 0:00:24]} dxc4 {[%emt 0:00:34]} 9. Bxf6 {[%emt 0:01:57]} Nxf6 {[%emt 0:00:34]} 10. Nxc4 {[%emt 0:00:17]} Qg5 {[%emt 0:03:58]} 11. a3 {[%emt 0:05:17]} Be7 {[%emt 0:01:09]} 12. g3 {[%emt 0:02:22]} O-O {[%emt 0:05:05]} 13. Bg2 {[%emt 0:06:46]} Rd8 {[%emt 0:03:47]} 14. O-O {[%emt 0:02:04]} Bd7 {[%emt 0:05:29]} 15. e4 {[%emt 0:01:20]} Be8 {[%emt 0:01:32]} 16. Rad1 {[%emt 0:08:47]} Rab8 {[%emt 0:08:23]} 17. f4 {[%emt 0:05:26]} Qh6 {[%emt 0:01:56]} 18. Rfe1 {[%emt 0:04:48]} b5 {[%emt 0:03:18]} 19. Ne3 {[%emt 0:05:05]} Qh5 {[%emt 0:03:47]} 20. f5 {[%emt 0:04:52]} b4 {[%emt 0:03:42]} 21. axb4 {[%emt 0:01:38]} Bxb4 {[%emt 0:00:37]} 22. fxe6 {[%emt 0:01:28]} fxe6 {[%emt 0:00:41]} 23. e5 {[%emt 0:05:42]} Nd5 {[%emt 0:02:25]} 24. Ncxd5 {[%emt 0:39:03]} cxd5 {[%emt 0:02:56]} 25. Rf1 {[%emt 0:00:00]} Qg5 {[%emt 0:02:19]} 26. Rf4 {[%emt 0:00:00]} Rdc8 {[%emt 0:08:59]} 27. Qf2 {[%emt 0:00:00]} Bh5 {[%emt 0:02:14]} 28. g4 {[%emt 0:00:00]} Rf8 {[%emt 0:02:09]} 29. Rxf8+ {[%emt 0:00:00]} Rxf8 {[%emt 0:00:18]} 30. Qe2 {[%emt 0:00:00]} Bg6 {[%emt 0:04:42]} 31. Rf1 {[%emt 0:00:00]} Rxf1+ {[%emt 0:00:24]} 1/2-1/2

[Event "XX Gran Hotel Bali-B 2023"]
[Site "Benidorm"]
[Date "2023.12.02"]
[Round "1.10"]
[White "Shaffer, Alexander"]
[Black "Tudela Gonzalez, Victor"]
[Result "0-1"]
[ECO "E92"]
[WhiteElo "1634"]
[BlackElo "1957"]
[Annotator "NA RC"]
[PlyCount "54"]
[EventDate "2023.12.02"]
[EventType "swiss"]
[EventCountry "ESP"]
[SourceTitle "playchess.com"]
[Source "ChessBase"]
[SourceQuality "1"]
[TimeControl "5400+30"]

1. d4 {[%emt 0:00:12]} Nf6 {[%emt 0:00:30]} 2. c4 {[%emt 0:00:25]} g6 {[%emt 0:00:28]} 3. Nc3 {[%emt 0:00:09]} Bg7 {[%emt 0:00:36]} 4. e4 {[%emt 0:00:21]} d6 {[%emt 0:00:37]} 5. Nf3 {[%emt 0:00:13]} O-O {[%emt 0:00:46]} 6. Be2 {[%emt 0:00:30]} e5 {[%emt 0:01:15]} 7. dxe5 {[%emt 0:00:58]} dxe5 {[%emt 0:01:10]} 8. Qxd8 {[%emt 0:00:08]} Rxd8 {[%emt 0:00:05]} 9. Bg5 {[%emt 0:00:09]} Re8 {[%emt 0:00:45]} 10. O-O-O {[%emt 0:00:33]} h6 {[%emt 0:02:02]} 11. Bxf6 {[%emt 0:11:43]} Bxf6 {[%emt 0:00:32]} 12. Nb5 {[%emt 0:00:08]} Na6 {[%emt 0:03:13]} 13. c5 {[%emt 0:00:24]} Be6 {[%emt 0:09:01]} 14. Kb1 {[%emt 0:00:28]} Re7 {[%emt 0:06:57]} 15. Rc1 {[%emt 0:09:29]} Rd7 {[%emt 0:21:55]} 16. c6 {[%emt 0:04:45]} bxc6 {[%emt 0:01:11]} 17. Rxc6 {[%emt 0:00:33]} Bxa2+ {[%emt 0:03:31]} 18. Ka1 {[%emt 0:00:11]} Nb4 {[%emt 0:00:56]} 19. Rxf6 {[%emt 0:01:00]} Be6 {[%emt 0:05:03]} 20. Nxe5 {[%emt 0:04:21]} Rd2 {[%emt 0:03:14]} 21. Nc3 {[%emt 0:03:25]} Rb8 {[%emt 0:03:36]} 22. Bc4 {[%emt 0:15:13]} Nc2+ {[%emt 0:03:08]} 23. Ka2 {[%emt 0:00:11]} Nd4 {[%emt 0:02:11]} 24. Rb1 {[%emt 0:02:34]} Rb6 {[%emt 0:02:13]} 25. Rxe6 {[%emt 0:44:57]} fxe6 {[%emt 0:00:43]} 26. Nd3 {[%emt 0:00:00]} Rc6 {[%emt 0:00:46]} 27. Ne5 {[%emt 0:00:00]} Rc5 {[%emt 0:00:22]} 0-1

[Event "XX Gran Hotel Bali-B 2023"]
[Site "Benidorm"]
[Date "2023.12.02"]
[Round "1.11"]
[White "Navarro Rico, Lluis"]
[Black "Galiana Fernandez, Hector"]
[Result "1-0"]
[ECO "D80"]
[WhiteElo "1937"]
[BlackElo "1555"]
[Annotator "NA RC"]
[PlyCount "47"]
[EventDate "2023.12.02"]
[EventType "swiss"]
[EventCountry "ESP"]
[SourceTitle "playchess.com"]
[Source "ChessBase"]
[SourceQuality "1"]
[TimeControl "5400+30"]

1. c4 {[%emt 0:01:02]} Nf6 {[%emt 0:00:22]} 2. Nc3 {[%emt 0:00:09]} d5 {[%emt 0:00:12]} 3. e3 {[%emt 0:01:43]} g6 {[%emt 0:00:53]} 4. Qb3 {[%emt 0:01:07]} c6 {[%emt 0:02:23]} 5. Nf3 {[%emt 0:00:30]} Bg7 {[%emt 0:00:19]} 6. cxd5 {[%emt 0:01:50]} Nxd5 {[%emt 0:00:58]} 7. Bc4 {[%emt 0:06:19]} e6 {[%emt 0:02:04]} 8. d4 {[%emt 0:00:53]} O-O {[%emt 0:01:05]} 9. h4 {[%emt 0:00:21]} Nxc3 {[%emt 0:01:15]} 10. bxc3 {[%emt 0:00:13]} c5 {[%emt 0:02:08]} 11. Ba3 {[%emt 0:03:09]} Nd7 {[%emt 0:05:03]} 12. h5 {[%emt 0:00:16]} Re8 {[%emt 0:03:49]} 13. Rd1 {[%emt 0:10:39]} a6 {[%emt 0:04:58]} 14. dxc5 {[%emt 0:04:06]} Qc7 {[%emt 0:01:46]} 15. hxg6 {[%emt 0:02:24]} hxg6 {[%emt 0:00:17]} 16. c6 {[%emt 0:00:27]} Qxc6 {[%emt 0:00:47]} 17. Rd6 {[%emt 0:01:44]} Qe4 {[%emt 0:05:39]} 18. Rh4 {[%emt 0:06:05]} Qf5 {[%emt 0:01:44]} 19. Rf4 {[%emt 0:02:01]} Nc5 {[%emt 0:03:13]} 20. Qb4 {[%emt 0:04:03]} Ne4 {[%emt 0:00:56]} 21. Rxf5 {[%emt 0:06:19]} Bxc3+ {[%emt 0:00:29]} 22. Qxc3 {[%emt 0:00:04]} Nxc3 {[%emt 0:00:11]} 23. Rf4 {[%emt 0:02:09]} b5 {[%emt 0:02:31]} 24. Bb4 {[%emt 0:00:16]} 1-0

[Event "XX Gran Hotel Bali-B 2023"]
[Site "Benidorm"]
[Date "2023.12.02"]
[Round "1.12"]
[White "Ramos Garcia, Miguel"]
[Black "Medina Romero, Jose"]
[Result "0-1"]
[ECO "C41"]
[WhiteElo "1609"]
[BlackElo "1963"]
[Annotator "NA RC"]
[PlyCount "132"]
[EventDate "2023.12.02"]
[EventType "swiss"]
[EventCountry "ESP"]
[SourceTitle "playchess.com"]
[Source "ChessBase"]
[SourceQuality "1"]
[TimeControl "5400+30"]

1. e4 {[%emt 0:00:04]} e5 {[%emt 0:00:08]} 2. Nf3 {[%emt 0:00:08]} d6 {[%emt 0:00:06]} 3. h3 {[%emt 0:00:25]} Nf6 {[%emt 0:00:07]} 4. d3 {[%emt 0:00:31]} Be7 {[%emt 0:00:07]} 5. Be2 {[%emt 0:01:21]} O-O {[%emt 0:00:09]} 6. O-O {[%emt 0:00:04]} c6 {[%emt 0:00:52]} 7. Bg5 {[%emt 0:01:11]} Re8 {[%emt 0:00:49]} 8. Re1 {[%emt 0:01:04]} Nbd7 {[%emt 0:03:01]} 9. Nbd2 {[%emt 0:01:26]} h6 {[%emt 0:01:18]} 10. Bh4 {[%emt 0:00:14]} Nf8 {[%emt 0:00:10]} 11. Bf1 {[%emt 0:03:04]} g5 {[%emt 0:00:15]} 12. Bg3 {[%emt 0:00:32]} Ng6 {[%emt 0:00:07]} 13. d4 {[%emt 0:00:45]} Bf8 {[%emt 0:00:51]} 14. dxe5 {[%emt 0:00:42]} dxe5 {[%emt 0:00:13]} 15. Nc4 {[%emt 0:00:52]} Qc7 {[%emt 0:01:33]} 16. b3 {[%emt 0:07:15]} Bd7 {[%emt 0:01:47]} 17. Nb2 {[%emt 0:01:32]} Rad8 {[%emt 0:00:21]} 18. Qe2 {[%emt 0:01:04]} Nh5 {[%emt 0:04:31]} 19. Bh2 {[%emt 0:04:57]} Nhf4 {[%emt 0:01:22]} 20. Qe3 {[%emt 0:01:29]} b6 {[%emt 0:01:42]} 21. Nd3 {[%emt 0:01:17]} Bg7 {[%emt 0:02:28]} 22. Rad1 {[%emt 0:00:31]} Be6 {[%emt 0:04:29]} 23. Kh1 {[%emt 0:01:32]} Qe7 {[%emt 0:02:44]} 24. a4 {[%emt 0:02:43]} Rd7 {[%emt 0:05:37]} 25. Ng1 {[%emt 0:02:01]} Red8 {[%emt 0:03:37]} 26. Qc1 {[%emt 0:03:51]} Qf6 {[%emt 0:01:51]} 27. Bxf4 {[%emt 0:02:51]} gxf4 {[%emt 0:02:50]} 28. Nf3 {[%emt 0:01:33]} c5 {[%emt 0:04:58]} 29. Nb2 {[%emt 0:01:44]} Nh4 {[%emt 0:01:22]} 30. Be2 {[%emt 0:04:48]} Nxf3 {[%emt 0:00:13]} 31. Bxf3 {[%emt 0:00:09]} Qh4 {[%emt 0:01:50]} 32. Kg1 {[%emt 0:00:54]} Bf8 {[%emt 0:02:15]} 33. Rxd7 {[%emt 0:00:13]} Rxd7 {[%emt 0:00:20]} 34. Rd1 {[%emt 0:00:04]} Qd8 {[%emt 0:03:46]} 35. Rxd7 {[%emt 0:00:23]} Qxd7 {[%emt 0:00:05]} 36. Qd1 {[%emt 0:00:07]} Qd4 {[%emt 0:00:13]} 37. Qxd4 {[%emt 0:01:53]} cxd4 {[%emt 0:00:14]} 38. Nd3 {[%emt 0:00:12]} f6 {[%emt 0:00:18]} 39. Kf1 {[%emt 0:01:59]} Bc5 {[%emt 0:02:22]} 40. Ke2 {[%emt 0:03:32]} Kf7 {[%emt 0:49:29]} 41. Bh5+ {[%emt 0:00:21]} Ke7 {[%emt 0:00:00]} 42. Bg6 {[%emt 0:00:44]} Bd6 {[%emt 0:00:00]} 43. Kf3 {[%emt 0:04:21]} Bc5 {[%emt 0:00:00]} 44. h4 {[%emt 0:02:37]} Bd6 {[%emt 0:00:00]} 45. g3 {[%emt 0:03:00]} fxg3 {[%emt 0:00:00]} 46. Kxg3 {[%emt 0:00:42]} f5 {[%emt 0:00:00]} 47. f4 {[%emt 0:06:34]} exf4+ {[%emt 0:00:00]} 48. Nxf4 {[%emt 0:00:09]} Kf6 {[%emt 0:00:00]} 49. Bh7 {[%emt 0:02:13]} Bxb3 {[%emt 0:00:00]} 50. cxb3 {[%emt 0:06:32]} d3 {[%emt 0:00:00]} 51. Kf3 {[%emt 0:00:10]} Bxf4 {[%emt 0:00:00]} 52. Bxf5 {[%emt 0:00:54]} Ke5 {[%emt 0:00:00]} 53. Bh7 {[%emt 0:01:46]} a5 {[%emt 0:00:00]} 54. Bg6 {[%emt 0:01:21]} Bd2 {[%emt 0:00:00]} 55. Bh7 {[%emt 0:00:53]} Bc1 {[%emt 0:00:00]} 56. Bg6 {[%emt 0:00:31]} Bf4 {[%emt 0:00:00]} 57. Bh7 {[%emt 0:00:18]} Kd4 {[%emt 0:00:00]} 58. Kf2 {[%emt 0:05:45]} Kc3 {[%emt 0:00:00]} 59. Ke1 {[%emt 0:00:59]} Kc2 {[%emt 0:00:00]} 60. e5 {[%emt 0:00:37]} Bxe5 {[%emt 0:00:00]} 61. h5 {[%emt 0:00:25]} Bf4 {[%emt 0:00:00]} 62. Bg6 {[%emt 0:00:18]} Bd2+ {[%emt 0:00:00]} 63. Kf2 {[%emt 0:00:22]} Kc3 {[%emt 0:00:00]} 64. Bf7 {[%emt 0:01:30]} Kc2 {[%emt 0:00:00]} 65. Be6 {[%emt 0:00:15]} Be1+ {[%emt 0:00:00]} 66. Kf1 {[%emt 0:05:07]} d2 {[%emt 0:00:00]} 0-1

[Event "XX Gran Hotel Bali-B 2023"]
[Site "Benidorm"]
[Date "2023.12.02"]
[Round "2.1"]
[White "Ochoa Gonzalez, Hugo"]
[Black "Sanchez Lopez, Jesus"]
[Result "1-0"]
[ECO "C29"]
[WhiteElo "1788"]
[BlackElo "1993"]
[Annotator "NA RC"]
[PlyCount "81"]
[EventDate "2023.12.02"]
[EventType "swiss"]
[EventCountry "ESP"]
[SourceTitle "playchess.com"]
[Source "ChessBase"]
[SourceQuality "1"]
[TimeControl "5400+30"]

1. e4 {[%emt 0:01:33]} e5 {[%emt 0:00:12]} 2. Nc3 {[%emt 0:00:19]} Nf6 {[%emt 0:01:02]} 3. f4 {[%emt 0:00:18]} d5 {[%emt 0:00:38]} 4. fxe5 {[%emt 0:00:16]} Nxe4 {[%emt 0:00:17]} 5. Qf3 {[%emt 0:00:47]} Nxc3 {[%emt 0:03:35]} 6. bxc3 {[%emt 0:00:23]} c5 {[%emt 0:02:37]} 7. Qg3 {[%emt 0:00:22]} g6 {[%emt 0:10:33]} 8. Nf3 {[%emt 0:05:42]} Bg7 {[%emt 0:00:51]} 9. d4 {[%emt 0:09:46]} O-O {[%emt 0:08:30]} 10. Bd3 {[%emt 0:10:37]} Qa5 {[%emt 0:10:25]} 11. Bd2 {[%emt 0:02:46]} c4 {[%emt 0:00:32]} 12. Be2 {[%emt 0:00:05]} Bf5 {[%emt 0:01:57]} 13. h4 {[%emt 0:11:46]} h5 {[%emt 0:02:58]} 14. O-O {[%emt 0:01:16]} Bg4 {[%emt 0:21:01]} 15. Rae1 {[%emt 0:04:41]} Qxa2 {[%emt 0:13:08]} 16. Ng5 {[%emt 0:02:43]} Qxc2 {[%emt 0:14:30]} 17. Bxg4 {[%emt 0:01:32]} hxg4 {[%emt 0:01:56]} 18. e6 {[%emt 0:07:34]} f6 {[%emt 0:02:08]} 19. e7 {[%emt 0:12:21]} Re8 {[%emt 0:00:09]} 20. Qd6 {[%emt 0:02:27]} Nc6 {[%emt 0:02:11]} 21. Qxd5+ {[%emt 0:08:31]} Kh8 {[%emt 0:00:03]} 22. Qf7 {[%emt 0:00:09]} fxg5 {[%emt 0:01:46]} 23. Bxg5 {[%emt 0:00:18]} Nxe7 {[%emt 0:00:27]} 24. Bxe7 {[%emt 0:01:48]} Qd3 {[%emt 0:00:32]} 25. Re6 {[%emt 0:00:51]} Rf8 {[%emt 0:00:30]} 26. Bxf8 {[%emt 0:00:25]} Rxf8 {[%emt 0:00:01]} 27. Re8 {[%emt 0:00:30]} Rxe8 {[%emt 0:00:40]} 28. Qxe8+ {[%emt 0:00:08]} Kh7 {[%emt 0:00:05]} 29. h5 {[%emt 0:02:56]} gxh5 {[%emt 0:01:12]} 30. Qxh5+ {[%emt 0:00:10]} Kg8 {[%emt 0:00:01]} 31. Qxg4 {[%emt 0:00:27]} Qxc3 {[%emt 0:00:38]} 32. Qe6+ {[%emt 0:04:38]} Kh8 {[%emt 0:00:01]} 33. Rf3 {[%emt 0:01:45]} Qxd4+ {[%emt 0:00:36]} 34. Re3 {[%emt 0:00:57]} Qb6 {[%emt 0:01:14]} 35. Qe8+ {[%emt 0:00:31]} Kh7 {[%emt 0:00:02]} 36. Kh1 {[%emt 0:00:26]} Qb1+ {[%emt 0:00:45]} 37. Kh2 {[%emt 0:00:04]} Qg6 {[%emt 0:00:28]} 38. Rh3+ {[%emt 0:00:53]} Bh6 {[%emt 0:00:01]} 39. Qe7+ {[%emt 0:00:34]} Kg8 {[%emt 0:00:50]} 40. Rg3 {[%emt 0:00:37]} Bf4 {[%emt 0:00:02]} 41. Qe8+ {[%emt 0:00:06]} 1-0

[Event "XX Gran Hotel Bali-B 2023"]
[Site "Benidorm"]
[Date "2023.12.02"]
[Round "2.2"]
[White "Lloret Mauri, Jaime"]
[Black "Nordgreen, Jan Thomas"]
[Result "0-1"]
[ECO "B22"]
[WhiteElo "1997"]
[BlackElo "1705"]
[Annotator "NA RC"]
[PlyCount "112"]
[EventDate "2023.12.02"]
[EventType "swiss"]
[EventCountry "ESP"]
[SourceTitle "playchess.com"]
[Source "ChessBase"]
[SourceQuality "1"]
[TimeControl "5400+30"]

1. e4 {[%emt 0:00:01]} c5 {[%emt 0:00:12]} 2. c3 {[%emt 0:00:10]} Nf6 {[%emt 0:00:58]} 3. e5 {[%emt 0:00:51]} Nd5 {[%emt 0:00:18]} 4. Nf3 {[%emt 0:00:54]} d6 {[%emt 0:04:56]} 5. d4 {[%emt 0:00:48]} cxd4 {[%emt 0:00:33]} 6. Qxd4 {[%emt 0:02:54]} e6 {[%emt 0:06:58]} 7. Nbd2 {[%emt 0:16:55]} a6 {[%emt 0:45:18]} 8. Nc4 {[%emt 0:07:01]} Nc6 {[%emt 0:00:42]} 9. Qg4 {[%emt 0:01:58]} dxe5 {[%emt 0:01:03]} 10. Ncxe5 {[%emt 0:00:44]} Qc7 {[%emt 0:02:20]} 11. Nxc6 {[%emt 0:08:31]} Qxc6 {[%emt 0:00:40]} 12. Nd4 {[%emt 0:01:26]} Qc7 {[%emt 0:01:05]} 13. Qf3 {[%emt 0:00:37]} Bc5 {[%emt 0:06:24]} 14. Nb3 {[%emt 0:04:48]} Ba7 {[%emt 0:01:47]} 15. Bg5 {[%emt 0:00:29]} Qe5+ {[%emt 0:00:50]} 16. Be3 {[%emt 0:00:26]} Bxe3 {[%emt 0:03:19]} 17. fxe3 {[%emt 0:00:15]} Nxe3 {[%emt 0:00:12]} 18. Kd2 {[%emt 0:02:33]} Nd5 {[%emt 0:00:28]} 19. Re1 {[%emt 0:01:25]} Qg5+ {[%emt 0:01:09]} 20. Kc2 {[%emt 0:00:37]} O-O {[%emt 0:00:21]} 21. Bd3 {[%emt 0:01:02]} Bd7 {[%emt 0:03:11]} 22. Nd4 {[%emt 0:03:54]} Rac8 {[%emt 0:01:23]} 23. Kb1 {[%emt 0:00:16]} Bc6 {[%emt 0:09:26]} 24. Nxc6 {[%emt 0:01:24]} Rxc6 {[%emt 0:00:08]} 25. Rhf1 {[%emt 0:01:09]} Rb6 {[%emt 0:01:10]} 26. Ka1 {[%emt 0:04:23]} Nf6 {[%emt 0:04:35]} 27. h4 {[%emt 0:01:52]} Qd5 {[%emt 0:00:26]} 28. Qe2 {[%emt 0:01:27]} Qh5 {[%emt 0:01:16]} 29. g4 {[%emt 0:02:27]} Qxg4 {[%emt 0:00:55]} 30. Qf2 {[%emt 0:00:07]} Rd6 {[%emt 0:01:41]} 31. Rg1 {[%emt 0:00:15]} Qxg1 {[%emt 0:00:21]} 32. Bxh7+ {[%emt 0:00:17]} Kxh7 {[%emt 0:00:32]} 33. Rxg1 {[%emt 0:00:26]} Rd5 {[%emt 0:01:34]} 34. a3 {[%emt 0:00:29]} Rfd8 {[%emt 0:00:33]} 35. Qg2 {[%emt 0:00:32]} Rd1+ {[%emt 0:00:32]} 36. Rxd1 {[%emt 0:00:20]} Rxd1+ {[%emt 0:01:14]} 37. Ka2 {[%emt 0:00:15]} Rd7 {[%emt 0:00:00]} 38. Qf3 {[%emt 0:00:53]} Kg8 {[%emt 0:00:00]} 39. c4 {[%emt 0:00:41]} e5 {[%emt 0:00:00]} 40. h5 {[%emt 0:00:53]} e4 {[%emt 0:00:10]} 41. Qf5 {[%emt 0:06:55]} Re7 {[%emt 0:00:49]} 42. h6 {[%emt 0:00:08]} Re6 {[%emt 0:00:29]} 43. hxg7 {[%emt 0:00:11]} e3 {[%emt 0:00:35]} 44. Qh3 {[%emt 0:00:15]} Nh7 {[%emt 0:00:29]} 45. Qh1 {[%emt 0:01:29]} e2 {[%emt 0:00:20]} 46. Qe1 {[%emt 0:00:07]} f5 {[%emt 0:01:07]} 47. Kb1 {[%emt 0:00:24]} f4 {[%emt 0:00:07]} 48. Kc2 {[%emt 0:00:50]} f3 {[%emt 0:00:35]} 49. Kd2 {[%emt 0:01:06]} Ng5 {[%emt 0:01:05]} 50. b4 {[%emt 0:01:24]} f2 {[%emt 0:00:37]} 51. Qxe2 {[%emt 0:00:08]} Rxe2+ {[%emt 0:00:06]} 52. Kxe2 {[%emt 0:01:01]} Ne4 {[%emt 0:00:02]} 53. b5 {[%emt 0:00:55]} Kxg7 {[%emt 0:00:08]} 54. bxa6 {[%emt 0:00:26]} bxa6 {[%emt 0:00:06]} 55. c5 {[%emt 0:00:17]} Kf6 {[%emt 0:00:10]} 56. c6 {[%emt 0:00:08]} Ke6 {[%emt 0:00:06]} 0-1